Cogmind - Beta 17 @@@ ROGUE MODE // 2026.07.18 @ 13:17:41 Player: Smol John Result: Destroyed by Y-64 Sentinel with KE Penetrator Performance ------------- Evolutions (6) 3000 Regions Visited (12) 2400 Robots Destroyed (98) 490 Value Destroyed (2812) 2812 Prototype IDs (29) 580 Alien Tech Used (0) 0 Bonus (1077) 1077 TOTAL SCORE: 10359 Bonus ------- High Alert Combat Kills 238 Follower Combat Kills 39 Entered DSFs 500 Aligned with FarCom 300 Cogmind --------- Core Integrity 0/1150 Matter 234/300 Energy 100/100 System Corruption 3% Temperature Cool (10) Movement Flying (35) Location -4/Factory Parts ------- > --- POWER (2) -------- (None) > --- PROPULSION (6) --- VTOL Module > --- UTILITY (8) ------ Improved Signal Interpreter Melee Analysis Suite > --- WEAPON (3) ------- (None) > --- INVENTORY (5) ---- Melee Analysis Suite Long-range Proton Cannon Peak State ------------ > --- POWER ------------ Light Nuclear Core Light Nuclear Core > --- PROPULSION ------- Armored Leg Armored Leg Armored Huge Wheel Armored Huge Wheel > --- UTILITY ---------- Advanced Heat Sink Improved Signal Interpreter Melee Analysis Suite Improved Utility Shielding Improved Light Armor Plating Layered Light Armor Plating > --- WEAPON ----------- Firepult Powered Hammer > --- INVENTORY -------- Melee Analysis Suite Kinetic Spear [Rating: 78] Favorites ----------- Power Light Nuclear Core Engine Light Ion Engine Power Core Light Nuclear Core Propulsion Aluminum Leg Treads Light Treads Leg Aluminum Leg Wheel Armored Huge Wheel Hover Unit Combat Gravmag System Flight Unit Cesium-ion Thruster Utility Hacking Suite Device Advanced Heat Sink Storage Medium Storage Unit Processor Melee Analysis Suite Hackware Hacking Suite Protection Improved Utility Shielding Weapon Heavy Assault Rifle Energy Gun Small Laser Energy Cannon Light EM Pulse Cannon Ballistic Gun Heavy Assault Rifle Launcher Grenade Launcher Impact Weapon Powered Hammer Slashing Weapon Katana Piercing Weapon Kinetic Spear Build | -11 -10 -10 -9 -9 -9 -8 -8 -7 -7 -6 -5 -4 ------- Run | Yrd Mat Min Mat Min Exi Min Mat Fac DSF Fac Fac Fac Slots Evolved 12 | . . . 2 . . . 2 2 . 2 2 2 Power 1 | . . . . . . . . . . 1 . . Propulsion 4 | . . . 1 . . . 1 . . 1 1 . Utility 6 | . . . 1 . . . 1 1 . . 1 2 Weapon 1 | . . . . . . . . 1 . . . . Parts Attached 80 | 6 11 4 6 6 . 2 5 8 . 10 14 8 Power 12 | 1 . 1 1 1 . . 2 1 . 1 3 1 Engine 6 | 1 . 1 1 1 . . 1 . . . . 1 Core 6 | . . . . . . . 1 1 . 1 3 . Reactor . | . . . . . . . . . . . . . Propulsion 39 | 2 8 2 2 3 . 1 2 4 . 4 7 4 Treads 2 | . 2 . . . . . . . . . . . Leg 16 | . 2 2 1 3 . 1 2 . . 2 3 . Wheel 4 | 2 . . . . . . . . . 2 . . Hover 8 | . 2 . . . . . . . . . 4 2 Flight 9 | . 2 . 1 . . . . 4 . . . 2 Utility 14 | 1 2 . 1 . . . 1 3 . 3 2 1 Device 3 | . . . . . . . . 1 . 1 . 1 Storage 2 | 1 1 . . . . . . . . . . . Processor 5 | . . . 1 . . . 1 2 . 1 . . Hackware 1 | . 1 . . . . . . . . . . . Protection 3 | . . . . . . . . . . 1 2 . Artifact . | . . . . . . . . . . . . . Weapon 15 | 2 1 1 2 2 . 1 . . . 2 2 2 Energy Gun 1 | 1 . . . . . . . . . . . . Energy Cannon 3 | . . . 1 . . 1 . . . . . 1 Ballistic Gun 4 | 1 1 . 1 1 . . . . . . . . Ballistic Cannon . | . . . . . . . . . . . . . Launcher 2 | . . 1 . . . . . . . . . 1 Special Weapon . | . . . . . . . . . . . . . Impact Weapon 2 | . . . . . . . . . . 2 . . Slashing Weapon 1 | . . . . 1 . . . . . . . . Piercing Weapon 2 | . . . . . . . . . . . 2 . Special Melee Weapon . | . . . . . . . . . . . . . Unidentified Prototypes 2 | . . . 1 . . . . . . . 1 . Parts Lost 39 | . . 2 2 2 . 1 4 . 3 3 12 10 Power 8 | . . 1 1 . . . 1 . . 1 3 1 Propulsion 18 | . . 1 1 . . 1 2 . 2 2 4 5 Utility 6 | . . . . . . . . . . . 3 3 Weapon 7 | . . . . 2 . . 1 . 1 . 2 1 Highest Loss Streak 8 | . . 1 2 2 . 1 4 . 3 3 7 8 To Critical Strikes 1 | . . . . . . . . . . . . 1 Average Backups 6 | 2 8 9 9 9 9 8 8 4 4 3 3 2 Power . | . 1 1 . . . . . 1 2 1 . . Propulsion 4 | 1 6 7 7 7 6 5 4 . . . 1 . Utility 1 | . . . . 1 1 1 1 1 1 1 1 1 Weapon 1 | . . 1 1 1 1 2 1 1 1 . . . Tool/Special . | . . . . . . . . . . . . . Unused Backups 2 | . . . . . 1 . . . . . . 1 Power . | . . . . . . . . . . . . . Propulsion 1 | . . . . . 1 . . . . . . . Utility 1 | . . . . . . . . . . . . 1 Weapon . | . . . . . . . . . . . . . Tool/Special . | . . . . . . . . . . . . . Average Slot Usage (%) 83 | . 85 98 98 99 100 94 91 89 86 62 75 42 Engine 6 | . 14 14 11 11 11 11 7 1 . . . . Core 2 | . . . . . . . 1 5 7 4 9 . Leg 20 | . 22 26 32 33 33 28 32 2 . 3 8 3 Wheel 2 | . 5 . . . . . . . . 6 7 . Hover 2 | . . . . . . . . . . . 6 14 Flight 1 | . . . . . . . . 26 26 3 . 2 Device 1 | . . . . . . . . . . 1 5 4 Storage 7 | . 14 14 11 11 11 11 9 1 . . . . Processor 10 | . . . 9 11 11 11 16 26 30 21 11 10 Hackware 6 | . . 14 11 11 11 11 9 7 7 6 1 . Protection 3 | . . . . . . . . . . 1 12 3 Energy Gun 2 | . 14 14 1 . . . . . . . . . Energy Cannon 2 | . . . 9 7 . . . . . 1 2 1 Ballistic Gun 7 | . 14 . 10 13 22 20 8 6 5 . . . Launcher 1 | . . 14 . . . . . . . . . . Impact Weapon 1 | . . . . . . . . . . 9 2 . Slashing Weapon 1 | . . . . . . . 8 7 7 . . . Peak Build Rating 78 | 6 10 16 21 18 18 33 25 51 36 66 78 63 Average Rating 31 | 4 6 12 18 16 16 17 21 35 32 44 69 44 On Entrance 21 | . 6 10 16 16 16 18 17 23 36 23 66 28 Avg Prop Armor Cover (%) 16 | . . . . . . . . . . 12 10 28 Naked Turns . | . . . . . . . . . . . . . Heaviest Build 45 | 10 16 23 26 22 17 17 22 32 10 34 45 21 Greatest Support 72 | 26 26 25 35 33 33 33 43 30 24 56 72 28 Greatest Overweight (x) 3 | 2 1 1 . . . . . 1 . 3 1 . Average Overweight (x) . | . . . . . . . . . . . . . Largest Inventory Capacity 10 | 8 10 10 10 10 10 10 10 10 5 5 5 5 Average Capacity 7 | 7 9 10 10 10 10 10 10 5 5 5 5 5 Most Carried 10 | 6 10 10 10 10 10 10 10 9 5 5 5 5 Average Carried 7 | 2 8 9 9 9 9 9 9 5 5 4 3 2 Final Capacity 10 | 8 10 10 10 10 10 10 10 5 5 5 5 5 Final Carried 10 | 6 10 10 10 10 10 9 9 5 5 3 5 2 Class Distribution -------------------- 60% | Mutant 30% | Scavenger-Mutant 5% | Sprinter 3% | Gladiator Dominant Class ---------------- Mutant | -10/Materials Mutant | -10/Mines Mutant | -9/Materials Scavenger-Mutant | -9/Mines Scavenger-Mutant | -9/Exiles Scavenger-Mutant | -8/Mines Scavenger-Mutant | -8/Materials Sprinter | -7/Factory Sprinter | -7/DSF Gladiator | -6/Factory Mutant | -5/Factory Mutant | -4/Factory Resources | -11 -10 -10 -9 -9 -9 -8 -8 -7 -7 -6 -5 -4 ----------- Run | Yrd Mat Min Mat Min Exi Min Mat Fac DSF Fac Fac Fac Matter Collected 1380 | 240 179 127 86 226 . 25 74 . . 210 213 . Remotely . | . . . . . . . . . . . . . Salvage Created 3495 | . 230 92 340 253 . 169 342 . . 289 1709 71 Parts 167 | . 23 3 19 29 . . 25 . . 11 49 8 Haulers Intercepted 1 | . . . . . . . . . . . 1 . Recyclers Shooed 4 | . . . 2 2 . . . . . . . . Parts Field Recycled . | . . . . . . . . . . . . . Retrieved Matter . | . . . . . . . . . . . . . Parts Self-Destructed . | . . . . . . . . . . . . . Prevented . | . . . . . . . . . . . . . Parts Restored . | . . . . . . . . . . . . . Kills | -11 -10 -10 -9 -9 -9 -8 -8 -7 -7 -6 -5 -4 ------- Run | Yrd Mat Min Mat Min Exi Min Mat Fac DSF Fac Fac Fac Combat Hostiles Destroyed 77 | . 7 7 7 12 . 3 8 . . 4 22 7 Melee 19 | . . . . . . . 8 . . 1 10 . Guns 16 | . 7 . 1 8 . . . . . . . . Cannons 8 | . . . 4 2 . . . . . . 2 . AOE 26 | . . 7 2 2 . . . . . 1 7 7 Classes Destroyed 14 | . 5 1 2 2 . . . . . 2 2 . Worker 5 | . . . . . . . . . . 1 4 . Builder 6 | . . . . 1 . . . . . 2 3 . Hauler 1 | . . . . . . . . . . . 1 . Recycler 6 | . 1 . 1 . . . . . . . 4 . Operator 3 | . 1 . 2 . . . . . . . . . Watcher 5 | . 2 . 1 . . . 1 . . . 1 . Swarmer 42 | . 6 . 3 10 . . 3 . . . 13 7 Grunt 15 | . 1 2 2 1 . 3 4 . . 2 . . Brawler 1 | . . . 1 . . . . . . . . . Duelist 1 | . . . . 1 . . . . . . . . Sentry 4 | . . . 1 . . . 1 . . 1 1 . Hunter 4 | . . . . . . . . . . . 4 . Programmer 5 | . . . . . . . . . . 1 4 . Assembled 5 | . . 5 . . . . . . . . . . Best Kill Streak 14 | . 3 5 4 7 . 3 4 . . 4 14 7 Combat Bots Only 7 | . 3 5 4 6 . 3 4 . . 2 7 7 Max Kills in Single Turn 7 | . 1 2 2 1 . 2 1 . . 2 7 4 Gunslinging . | . . . . . . . . . . . . . Exploded 4 | . . 2 2 1 . . . . . 1 2 4 Melee 1 | . . . . . . . 1 . . 1 1 . Uniques/NPCs Destroyed . | . . . . . . . . . . . . . Combat | -11 -10 -10 -9 -9 -9 -8 -8 -7 -7 -6 -5 -4 -------- Run | Yrd Mat Min Mat Min Exi Min Mat Fac DSF Fac Fac Fac Hostile Shots Fired 623 | . 26 13 13 59 . 2 50 . 14 45 164 237 Missed 237 | . 10 3 3 16 . 1 11 . 7 16 50 120 Hits 386 | . 16 10 10 43 . 1 39 . 7 29 114 117 Melee 7 | . . . . 1 . . . . 6 . . . Projectile 379 | . 16 10 10 42 . 1 39 . 1 29 114 117 AOE 6 | . . 3 . . . . . . 3 . . . Critical Strikes 10 | . . . . . . . . . 3 . 4 3 Part Disruptions 1 | . . . . . . . . . . 1 . . Damage Taken 6685 | . 168 240 138 444 . 26 422 . 156 431 2537 2123 Core 2017 | . 23 24 6 64 . . 120 . 24 173 429 1154 Absorbed by Shields 40 | . . . . . . . . . 40 . . . Redirected to Shielding 103 | . . . . . . . . . . . 75 28 Regen/Repaired (Parts) 154 | . . . . . . . . . . . 154 . Core Remaining (%) 81 | 100 . 81 . . . 82 78 . 96 79 57 . Volleys Fired 103 | . 35 8 17 23 . 3 . . . 3 12 2 Largest 2 | . 2 2 2 2 . 2 . . . 1 1 1 Hottest 250 | . 60 70 79 79 . 250 . . . 250 250 49 Shots Fired 169 | . 61 16 32 39 . 4 . . . 3 12 2 Gun 112 | . 61 8 15 26 . 2 . . . . . . Cannon 44 | . . . 15 12 . 2 . . . 3 12 . Launcher 13 | . . 8 2 1 . . . . . . . 2 Special . | . . . . . . . . . . . . . Kinetic 78 | . 35 . 15 26 . 2 . . . . . . Thermal 51 | . 26 8 . . . 2 . . . 3 12 . Explosive 13 | . . 8 2 1 . . . . . . . 2 Electromagnetic 27 | . . . 15 12 . . . . . . . . Robot Hit Streak 8 | . 5 7 8 7 . 8 . . . . 3 1 Robot Miss Streak 7 | . 7 1 1 4 . 1 . . . . 4 . Penetration Max . | . . . . . . . . . . . . . Secondary Targets 1 | . 1 . . . . . . . . . . . Max Gunslinging Chain 1 | . 1 . . . . . . . . . . . Shots Hit Robots 138 | . 26 7 19 24 . 2 18 . . 10 31 1 Core Hits 142 | . 19 21 14 16 . 3 8 . . 8 46 7 Critical Kills . | . . . . . . . . . . . . . Critical Parts Destroyed 2 | . . . . . . . . . . 2 . . Critical Strikes 6 | . . . . . . . 2 . . 2 2 . Smash 2 | . . . . . . . . . . 2 . . Sever 2 | . . . . . . . 2 . . . . . Impale 2 | . . . . . . . . . . . 2 . Melee Attacks 94 | . . . . . . . 39 6 3 12 34 . Impact 14 | . . . . . . . . . . 12 2 . Slashing 48 | . . . . . . . 39 6 3 . . . Piercing 32 | . . . . . . . . . . . 32 . Sneak Attacks 2 | . . . . . . . . . . 1 1 . Combat Hostiles . | . . . . . . . . . . . . . Follow-up Attacks 1 | . . . . . . . . . . 1 . . Damage Inflicted 6711 | . 282 447 573 494 . 340 585 . . 593 2616 781 Guns 697 | . 282 33 156 218 . 8 . . . . . . Cannons 727 | . . . 234 177 . 83 . . . 43 190 . Explosions 3223 | . . 409 183 89 . 249 . . . 161 1354 778 Melee 2046 | . . . . . . . 585 . . 389 1072 . Ramming 18 | . . 5 . 10 . . . . . . . 3 Kinetic 532 | . 150 . 156 218 . 8 . . . . . . Thermal 2441 | . 132 33 183 66 . 332 . . . 192 1503 . Explosive 1251 | . . 409 . 23 . . . . . . 41 778 Electromagnetic 423 | . . . 234 177 . . . . . 12 . . Impact 423 | . . . . . . . . . . 389 34 . Slashing 585 | . . . . . . . 585 . . . . . Piercing 1038 | . . . . . . . . . . . 1038 . Highest Corruption 3 | . . . . . . . . . . 2 3 3 Average Corruption 1 | . . . . . . . . . . 1 1 1 Corruption Purged . | . . . . . . . . . . . . . Corruption Blocked . | . . . . . . . . . . . . . Effects 11 | . . . . . . . . . . 4 6 1 Message Errors 2 | . . . . . . . . . . 2 . . Matter Fused 3 | . . . . . . . . . . 1 2 . Energy Discharges 2 | . . . . . . . . . . . 1 1 Parts Fused 1 | . . . . . . . . . . 1 . . Data Loss (minor) 1 | . . . . . . . . . . . 1 . Data Loss (major) 1 | . . . . . . . . . . . 1 . Alerts 1 | . . . . . . . . . . . 1 . Overload Shots . | . . . . . . . . . . . . . Overflow Damage 649 | . . 2 . . . . 23 . . 118 415 91 Projectiles . | . . . . . . . . . . . . . Explosions 288 | . . 2 . . . . . . . . 195 91 Melee 361 | . . . . . . . 23 . . 118 220 . Knockbacks 3 | . . . . . . . . . . 3 . . Impact 3 | . . . . . . . . . . 3 . . Kinetic . | . . . . . . . . . . . . . Secondary . | . . . . . . . . . . . . . Self-Inflicted Damage 750 | . . . 23 62 . 10 . . . 48 482 125 Shots 22 | . . . 1 2 . 1 . . . 5 11 2 Rammed 2 | . . . . . . . . . . . . 2 Targets Rammed 7 | . . 3 . 2 . . . . . . . 2 Kicked 5 | . . 3 . 2 . . . . . . . . Crushed . | . . . . . . . . . . . . . Highest Temperature 490 | . 40 36 96 66 . 414 . . . 352 490 . Average Temperature 96 | . 16 14 29 24 . 209 . . . 197 216 . Received Heat Transfer 477 | . 12 24 33 30 . 9 153 . . 63 117 36 Effects 7 | . . . . . . . . . . 1 6 . Shutdowns 1 | . . . . . . . . . . . 1 . Energy Bleed 1 | . . . . . . . . . . 1 . . Interference 3 | . . . . . . . . . . . 3 . Matter Decay 1 | . . . . . . . . . . . 1 . Short Circuit 1 | . . . . . . . . . . . 1 . Siege Activations . | . . . . . . . . . . . . . Martial Activations . | . . . . . . . . . . . . . Shielding Activations . | . . . . . . . . . . . . . Robots Disrupted 1 | . . . . 1 . . . . . . . . Combat Hostiles 1 | . . . . 1 . . . . . . . . Robots Corrupted 2 | . . . . . . . . . . 2 . . Combat Hostiles 1 | . . . . . . . . . . 1 . . Parts Fried 4 | . . . 1 . . . . . . 2 1 . Impact Corruptions 7 | . . . . . . . . . . 6 1 . Robots Melted 9 | . . . . . . 3 . . . 1 5 . Combat Hostiles 7 | . . . . . . 3 . . . 1 3 . Parts Melted 31 | . . . . . . 5 . . . 7 19 . Heat Transferred 9095 | . 300 75 250 100 . 1360 . . . 1120 5890 . Parts Sabotaged . | . . . . . . . . . . . . . Parts Stolen . | . . . . . . . . . . . . . Parts Stripped . | . . . . . . . . . . . . . Power Chain Reactions 2 | . . . 1 1 . . . . . . . . Alert | -11 -10 -10 -9 -9 -9 -8 -8 -7 -7 -6 -5 -4 ------- Run | Yrd Mat Min Mat Min Exi Min Mat Fac DSF Fac Fac Fac Maximum Alert Level 3 | . . . . . . . . . . . 3 2 Low Security (%) 82 | 100 100 100 100 100 . 100 100 100 100 100 53 . Level 1 7 | . . . . . . . . . . . 1 97 Level 2 3 | . . . . . . . . . . . 15 2 Level 3 6 | . . . . . . . . . . . 30 . Level 4 . | . . . . . . . . . . . . . Level 5 . | . . . . . . . . . . . . . High Security . | . . . . . . . . . . . . . Max Security . | . . . . . . . . . . . . . Peak Influence 790 | . 80 57 159 127 . 70 69 16 20 51 790 600 Initial 370 | . . . . 42 . . . 16 . 10 21 370 Average 121 | . 22 9 56 67 . 26 18 3 5 13 356 331 Influence Increases 3059 | . 194 109 274 300 . 80 244 5 33 172 1138 510 Destroy 0b10 Robot/C 1460 | . 140 60 140 240 . 60 160 . . 80 440 140 Destroy 0b10 Robot/NC 130 | . 20 . 20 5 . . 5 . . 15 65 . Destroy Leader 302 | . 34 20 32 40 . 10 32 . . 30 84 20 Allied During Kill 2 | . . 2 . . . . . . . . . . Successful Hack 85 | . . . 4 . . . 25 . . 14 35 7 Disable Machine 390 | . . . 15 . . . . . . 15 330 30 Destroy Structure 225 | . . 27 33 15 . 10 7 5 3 3 64 58 Lose Combat Pursuer 465 | . . . 30 . . . 15 . 30 15 120 255 Influence Decreases 2477 | . 194 109 166 324 84 80 208 41 13 149 425 684 Entered New Map 588 | . . . . 66 84 . . 20 . 10 22 386 Time Decay 1542 | . 194 85 146 238 . 70 168 21 . 129 293 198 Lost Part 327 | . . 4 20 20 . 10 40 . 13 10 110 100 Lost Ally 20 | . . 20 . . . . . . . . . . Squads Dispatched 22 | . 1 . . . . . 3 . 1 6 7 4 Investigation 6 | . 1 . . . . . 1 . . . 1 3 Extermination 4 | . . . . . . . . . . 1 2 1 Reinforcement 5 | . . . . . . . 2 . 1 2 . . Assault 1 | . . . . . . . . . . . 1 . Garrison 6 | . . . . . . . . . . 3 3 . Intercept . | . . . . . . . . . . . . . Searches Triggered . | . . . . . . . . . . . . . Construction Impeded 1 | . . . . . . . . . . 1 . . Haulers Reinforced . | . . . . . . . . . . . . . Active Scanning Responses . | . . . . . . . . . . . . . Cargo Convoy Interrupts . | . . . . . . . . . . . . . Stealth | -11 -10 -10 -9 -9 -9 -8 -8 -7 -7 -6 -5 -4 --------- Run | Yrd Mat Min Mat Min Exi Min Mat Fac DSF Fac Fac Fac Distress Signals 8 | . . . 1 . . . . . . 1 2 4 Communications Jammed . | . . . . . . . . . . . . . Distress Signals . | . . . . . . . . . . . . . Times Spotted 152 | . 14 11 11 13 . 3 13 . 6 7 34 40 Peak Tracking Total 13 | . 4 8 3 4 . 3 5 . 5 3 6 13 Tactical Retreats 16 | . . . 2 . . . 1 . 1 1 3 8 Traps | -11 -10 -10 -9 -9 -9 -8 -8 -7 -7 -6 -5 -4 ------- Run | Yrd Mat Min Mat Min Exi Min Mat Fac DSF Fac Fac Fac Traps Triggered 6 | . 1 . . . . . . . 3 1 1 . Indirectly . | . . . . . . . . . . . . . Trap Hack Attempts . | . . . . . . . . . . . . . Triggered . | . . . . . . . . . . . . . Disarmed 2 | . . . 2 . . . . . . . . . Reprogrammed . | . . . . . . . . . . . . . Reused . | . . . . . . . . . . . . . Traps Extracted . | . . . . . . . . . . . . . Installed . | . . . . . . . . . . . . . Triggered . | . . . . . . . . . . . . . Machines | -11 -10 -10 -9 -9 -9 -8 -8 -7 -7 -6 -5 -4 ---------- Run | Yrd Mat Min Mat Min Exi Min Mat Fac DSF Fac Fac Fac Machines Disabled 26 | . . . 1 . . . . . . 1 22 2 Max in Single Turn 15 | . . . 1 . . . . . . 1 15 1 Machines Repaired . | . . . . . . . . . . . . . Machines Dismantled . | . . . . . . . . . . . . . Machines Sabotaged . | . . . . . . . . . . . . . Overloaded Fab Kills . | . . . . . . . . . . . . . Hacking | -11 -10 -10 -9 -9 -9 -8 -8 -7 -7 -6 -5 -4 --------- Run | Yrd Mat Min Mat Min Exi Min Mat Fac DSF Fac Fac Fac Machines Accessed 27 | . 3 . 5 . 1 . 5 1 . 2 5 5 Terminals 20 | . 2 . 4 . . . 4 1 . 1 3 5 Fabricators 1 | . . . . . . . . . . . 1 . Repair Stations 1 | . . . . . . . . . . . 1 . Recycling Units 2 | . 1 . . . . . . . . 1 . . Scanalyzers 2 | . . . 1 . . . 1 . . . . . Garrison Access . | . . . . . . . . . . . . . Total Hacks 64 | . 9 . 13 . 1 . 14 1 . 4 12 10 Successful 23 | . 1 . 6 . 1 . 7 1 . 2 3 2 Failed 40 | . 8 . 7 . . . 6 . . 2 9 8 Catastrophic 13 | . 4 . . . . . 1 . . 1 . 7 Database Lockouts 1 | . . . . . . . 1 . . . . . Manual 36 | . 8 . 6 . 1 . 7 . . 1 6 7 Terminals 48 | . 8 . 11 . . . 10 1 . 2 6 10 Fabricators 2 | . . . . . . . . . . . 2 . Repair Stations 4 | . . . . . . . . . . . 4 . Recycling Units 3 | . 1 . . . . . . . . 2 . . Scanalyzers 6 | . . . 2 . . . 4 . . . . . Garrison Access . | . . . . . . . . . . . . . Terminal Hacks 16 | . . . 5 . 1 . 5 1 . 1 1 2 Part Schematic 1 | . . . . . . . 1 . . . . . Prototype ID Bank 2 | . . . 1 . . . 1 . . . . . Open DSF 2 | . . . . . . . . 1 . . . 1 Level Access Points 2 | . . . . . . . 1 . . . 1 . Branch Access Points 4 | . . . 1 . . . 2 . . . . 1 Emergency Access Points 1 | . . . 1 . . . . . . . . . Fabricator Index 1 | . . . . . . . . . . 1 . . Disarm Traps 1 | . . . 1 . . . . . . . . . Hauler Manifests 1 | . . . 1 . . . . . . . . . Proto ID Catalog 1 | . . . . . 1 . . . . . . . Fabricator Hacks . | . . . . . . . . . . . . . Repair Station Hacks 2 | . . . . . . . . . . . 2 . Scan Component 1 | . . . . . . . . . . . 1 . Repair 1 | . . . . . . . . . . . 1 . Recycling Unit Hacks 2 | . 1 . . . . . . . . 1 . . Report Inventory 2 | . 1 . . . . . . . . 1 . . Scanalyzer 3 | . . . 1 . . . 2 . . . . . Retrieve Study 3 | . . . 1 . . . 2 . . . . . Garrison Access Hacks . | . . . . . . . . . . . . . Unauthorized Hacks . | . . . . . . . . . . . . . Terminals . | . . . . . . . . . . . . . Fabricators . | . . . . . . . . . . . . . Repair Stations . | . . . . . . . . . . . . . Recycling Units . | . . . . . . . . . . . . . Scanalyzers . | . . . . . . . . . . . . . Garrison Access . | . . . . . . . . . . . . . Data Cores Recovered 3 | . 1 . 2 . . . . . . . . . Used 1 | . . . 1 . . . . . . . . . Hacking Detections 22 | . 2 . 4 . . . 4 . . 2 5 5 Full Trace Events 6 | . 1 . . . . . 1 . . . 1 3 Feedback Events 1 | . . . . . . . . . . . . 1 Corruption 1 | . . . . . . . . . . . . 1 Feedback Blocked . | . . . . . . . . . . . . . Robot Schematics Acquired . | . . . . . . . . . . . . . Robots Built . | . . . . . . . . . . . . . Authchips . | . . . . . . . . . . . . . Time . | . . . . . . . . . . . . . Total Robot Build Rating . | . . . . . . . . . . . . . Part Schematics Acquired 1 | . . . . . . . 1 . . . . . Parts Built . | . . . . . . . . . . . . . Authchips . | . . . . . . . . . . . . . Time . | . . . . . . . . . . . . . Total Part Build Rating . | . . . . . . . . . . . . . Part Studies Acquired 3 | . . . 1 . . . 2 . . . . . Parts Repaired 1 | . . . . . . . . . . . 1 . Time 19 | . . . . . . . . . . . 19 . Parts Recycled . | . . . . . . . . . . . . . Recycled Matter . | . . . . . . . . . . . . . Retrieved Matter . | . . . . . . . . . . . . . Retrieved Components . | . . . . . . . . . . . . . Parts Scanalyzed . | . . . . . . . . . . . . . Part Schematics Acquired . | . . . . . . . . . . . . . Parts Damaged . | . . . . . . . . . . . . . Bothacking | -11 -10 -10 -9 -9 -9 -8 -8 -7 -7 -6 -5 -4 ------------ Run | Yrd Mat Min Mat Min Exi Min Mat Fac DSF Fac Fac Fac Used RIF Installer . | . . . . . . . . . . . . . Robots Hacked . | . . . . . . . . . . . . . Non-combat . | . . . . . . . . . . . . . Combat . | . . . . . . . . . . . . . Robot Hacks Applied . | . . . . . . . . . . . . . Relay Couplers Released . | . . . . . . . . . . . . . Fabnet Peak Effective % . | . . . . . . . . . . . . . Robots Rewired . | . . . . . . . . . . . . . Allies Hacked . | . . . . . . . . . . . . . Hacks Repelled . | . . . . . . . . . . . . . Allies | -11 -10 -10 -9 -9 -9 -8 -8 -7 -7 -6 -5 -4 -------- Run | Yrd Mat Min Mat Min Exi Min Mat Fac DSF Fac Fac Fac Total Allies 1 | . . 1 . . . . . . . . . . Largest Group 1 | . . 1 . . . . . . . . . . Highest-Rated Group 31 | . . 31 . . . . . . . . . . Highest-Rated Ally 31 | . . 31 . . . . . . . . . . Total Orders . | . . . . . . . . . . . . . Ally Attacks 7 | . . 7 . . . . . . . . . . Total Damage 84 | . . 84 . . . . . . . . . . Kills 4 | . . 4 . . . . . . . . . . Allies Corrupted . | . . . . . . . . . . . . . Allies Melted . | . . . . . . . . . . . . . Intel | -11 -10 -10 -9 -9 -9 -8 -8 -7 -7 -6 -5 -4 ------- Run | Yrd Mat Min Mat Min Exi Min Mat Fac DSF Fac Fac Fac Active Infowar (turns) 224 | . . . . . . . . . . 224 . . Optics 224 | . . . . . . . . . . 224 . . Robot Analysis Total . | . . . . . . . . . . . . . Derelict Logs Recovered 3 | . . 1 . 2 . . . . . . . . Drone Launches . | . . . . . . . . . . . . . Drone Recoveries . | . . . . . . . . . . . . . Exploration | -11 -10 -10 -9 -9 -9 -8 -8 -7 -7 -6 -5 -4 ------------- Run | Yrd Mat Min Mat Min Exi Min Mat Fac DSF Fac Fac Fac Turns Passed 5370 | 60 667 413 490 511 232 192 710 154 38 413 1089 401 Spaces Moved 4800 | 55 467 308 370 388 210 161 458 207 68 539 926 643 Core 193 | 16 . . . . . . . . . 86 . 91 Treads . | . . . . . . . . . . . . . Legs 2306 | . 378 308 370 388 210 161 458 7 . 5 21 . Wheels 806 | 39 82 . . . . . . . . 160 525 . Hover 612 | . 5 . . . . . . . . . 380 227 Flight 883 | . 2 . . . . . . 200 68 288 . 325 Fastest Speed 26 | 50 56 120 105 105 110 110 105 26 26 32 74 35 Average Speed 90 | 82 114 123 109 109 110 110 107 29 27 64 95 57 Slowest Speed 200 | 150 120 190 120 110 110 112 108 106 32 200 190 87 Overloaded Moves . | . . . . . . . . . . . . . Propulsion Burnouts . | . . . . . . . . . . . . . Robots Hopped 9 | . . . . . . . . . . . . 9 Potential Cave-ins 8 | . . . . . . . 8 . . . . . Cave-ins Triggered . | . . . . . . . . . . . . . Exploration Rate (%) 39 | 3 71 80 34 61 61 36 36 4 69 15 24 25 Regions Visited 12 Branch Regions 4 Pre-discovered Areas . | . . . . . . . . . . . . . Known Exits Taken 6 | . . . 1 . . 1 1 1 . 1 1 . Unknown Exits Taken 5 | 1 1 1 . 1 1 . . . . . . . Scrap Searched 3 | . . 1 . 2 . . . . . . . . Spaces Dug 33 | . . . . . . . 16 6 3 2 6 . Terrain Destroyed 202 | . . 44 31 15 . 15 16 6 3 2 28 42 Melee 33 | . . . . . . . 16 6 3 2 6 . Projectile 1 | . . . . . . 1 . . . . . . AOE 168 | . . 44 31 15 . 14 . . . . 22 42 Terrain Rammed . | . . . . . . . . . . . . . Walls Destroyed . | . . . . . . . . . . . . . Machines Disabled . | . . . . . . . . . . . . . Actions | -11 -10 -10 -9 -9 -9 -8 -8 -7 -7 -6 -5 -4 --------- Run | Yrd Mat Min Mat Min Exi Min Mat Fac DSF Fac Fac Fac Total 5469 | 66 543 322 424 434 212 171 618 292 82 578 1065 662 Wait 275 | . 18 . 8 5 . 1 109 59 . 8 55 12 Move 4771 | 54 466 307 369 387 209 160 457 206 67 538 925 626 Hop 8 | . . . . . . . . . . . . 8 Pick Up 46 | 6 7 . 11 3 1 . 4 3 . 1 9 1 Fast Attach 38 | 6 2 1 1 1 . 2 2 2 . 10 6 5 Attach 29 | . 2 1 4 1 . 2 3 4 . 2 6 4 Detach 6 | . . . . . . 1 . 1 . . 3 1 Swap 35 | . 9 2 6 6 . . 3 4 . . 5 . Drop 41 | . 4 . 8 6 2 2 1 7 . 5 5 1 Fire 103 | . 35 8 17 23 . 3 . . . 3 12 2 Melee 93 | . . . . . . . 39 6 3 11 34 . Ram 2 | . . . . . . . . . . . . 2 Kick 5 | . . 3 . 2 . . . . . . . . Crush . | . . . . . . . . . . . . . Escape Stasis 17 | . . . . . . . . . 12 . 5 . Rewire . | . . . . . . . . . . . . . Trap . | . . . . . . . . . . . . . Miscellaneous . | . . . . . . . . . . . . . Route ------- -11/Scrapyard -10/Materials (discovered 3 exits: *Mat x2 / [*Min]) -10/Mines -9/Materials (discovered 5 exits: *Mat x3 / *Min x2) -9/Mines (discovered 2 exits: *Mat / *Exi) -9/Exiles -8/Mines -8/Materials (discovered 3 exits: *Fac x3) -7/Factory -7/DSF -6/Factory -5/Factory (discovered 4 exits: *Fac x4) -4/Factory (discovered 2 exits: Upp x2) History --------- Turn | Location | Event 35 | -11/Scrapyard | Discovered new exit (range 16) 61 | -11/Scrapyard | Entered Materials 222 | -10/Materials | Discovered new exit (range 16) 316 | -10/Materials | Build established: Mutant 430 | -10/Materials | Discovered new exit (range 16) 694 | -10/Materials | Discovered new exit (range 9) 728 | -10/Materials | Entered Mines 762 | -10/Mines | Received a Mining Laser from a helpful Derelict 847 | -10/Mines | Assembled infested the area 861 | -10/Mines | Learned 4 Materials zone layouts 1114 | -10/Mines | Found a hidden stash of uninstalled traps 1130 | -10/Mines | Discovered new exit (range 8) 1141 | -10/Mines | Entered Materials 1141 | -9/Materials | Evolved 2 slots: Propulsion x1, Utility x1 1142 | -9/Materials | Identified exit to Materials 1142 | -9/Materials | Identified exit to Mines 1492 | -9/Materials | Discovered exit to Materials (range 9) 1631 | -9/Materials | Entered Mines 1839 | -9/Mines | Learned Materials terminal intel 1845 | -9/Mines | Discovered exit to Materials (range 3) 1934 | -9/Mines | Build established: Scavenger-Mutant 2073 | -9/Mines | Learned 2 Materials zone layouts 2097 | -9/Mines | Deemed a non-threat by the Exiles lab entrance 2097 | -9/Mines | Discovered new exit (range 5) 2114 | -9/Mines | Found a damaged Exp. Sensor Array with a note attached 2117 | -9/Mines | Found Prototype Device 2142 | -9/Mines | Entered Exiles 2170 | -9/Exiles | Met 8R-AWN 2188 | -9/Exiles | Met EX-HEX 2219 | -9/Exiles | Met EX-BIN 2233 | -9/Exiles | Aligned with FarCom system 2234 | -9/Exiles | Given EX-Vault access code 2259 | -9/Exiles | Opened EX-Vault 2267 | -9/Exiles | Found Firepult 2290 | -9/Exiles | Warned to stay clear of 0b10 Research branches 2306 | -9/Exiles | Exiles lab attacked by MAIN.C 2360 | -9/Exiles | Discovered new exit (range 14) 2374 | -9/Exiles | Left Exiles lab with Firepult 2374 | -9/Exiles | Entered Mines 2558 | -8/Mines | Discovered exit to Materials (range 5) 2566 | -8/Mines | Entered Materials 2566 | -8/Materials | Evolved 2 slots: Propulsion x1, Utility x1 2568 | -8/Materials | Loaded intel: 12 terminal locations 2735 | -8/Materials | Central database locked down 3109 | -8/Materials | Lost 4 parts (1p2n1w) 3251 | -8/Materials | Identified exit to Factory 3276 | -8/Materials | Entered Factory 3276 | -7/Factory | Evolved 2 slots: Utility x1, Weapon x1 3429 | -7/Factory | Identified exit to DSF 3430 | -7/Factory | Entered DSF 3446 | -7/DSF | Additional patrols routed to DSF 3453 | -7/DSF | Discovered new exit (range 14) 3468 | -7/DSF | Identified exit to Factory 3468 | -7/DSF | Entered Factory 3468 | -6/Factory | Evolved 2 slots: Power x1, Propulsion x1 3490 | -6/Factory | Lost 3 parts (2n1w) 3562 | -6/Factory | Garrison activated, responded to threat 3617 | -6/Factory | Lost 3 parts (1p2n) 3857 | -6/Factory | Discovered new exit (range 4) 3860 | -6/Factory | Identified exit to Factory 3881 | -6/Factory | Entered another Factory area 3881 | -5/Factory | Evolved 2 slots: Propulsion x1, Utility x1 4050 | -5/Factory | Build established: Mutant 4462 | -5/Factory | Garrison activated, responded to threat 4525 | -5/Factory | Destroyed 7 combat bots 4587 | -5/Factory | Identified exit to Factory 4781 | -5/Factory | First assault squad dispatched 4795 | -5/Factory | Repaired Imp. Light Armor Plating 4937 | -5/Factory | Lost 7 parts (2p2n2u1w) 4970 | -5/Factory | Entered another Factory area 4970 | -4/Factory | Evolved 2 slots: Utility x2 5214 | -4/Factory | Identified exit to Upper Caves 5328 | -4/Factory | Core integrity fell below 50% 5343 | -4/Factory | Lost 8 parts (5n3u) 5350 | -4/Factory | Core integrity fell below 20% 5371 | -4/Factory | Destroyed by Y-64 Sentinel with KE Penetrator Last Messages --------------- 05310_ Cmb. Gravmag System destroyed. 05311_ Phase Shifter destroyed. 05312_ Cmb. Gravmag System destroyed. 05328_ T-07 Excavator destroyed. 05332_ P-70 Sage resets S-27 Virus, system corruption cleaned. 05344_ S-27 Virus destroyed. 05358_ Acquired Micro-nuke Launcher. 05359_ S-27 Virus destroyed. 05359_ Subcomponent Replicator disabled. 05359_ S-27 Virus destroyed. 05361_ Destroyed VTOL Module. 05361_ S-27 Virus destroyed. 05361_ Destroyed Lgt. Nuclear Core. 05361_ S-27 Virus destroyed. 05361_ Destroyed VTOL Module. 05361_ Manufacturing Mainframe disabled. 05363_ Micro-nuke Launcher destroyed. 05364_ Acquired VTOL Module. 05371_ The unstable cave ceiling collapses. Map ----- +----------------------------------------------------+ | ???? """" #?# ## # #??????? | | ?????? ???### #### # #??????? | | ??????##+######## #??# # #??????? | | ???#### #??# # +??????? | | ???# % #??# # #??????? | | ???# = #??############## #??????? | | ???# ####+######???????????????# #??????? | | ???# #? ???????????????????# #??????? | | ???# # ?????????????????# #??????? | | ???# # #???????????????# #??????? | | ??# # #???????????????# #??????? | | ## # #???????????????+ #??????? | | # #???????????????# #??????? | | # #???????????????? ???????? | | # #????????????????????????????? | | ###########????????????????????????????? | | ##??????????????????????????????????????? | | ####### ######??????????????????????????????????? | | # ??# # ###??###?#+#??????????????????????? | | ?+ ??# # # ?? ### ###????????????????????? | | ?# ]]]?# # # """" #! #????????????????????? | | ?# ]]]?# # # """" # k###??????????????????? | | ?# ]] # # # """" + Y sss??s????????????????? | | ?# # # # """ # #????????????????????? | | ?# + + # ?????????????????????? | | ?# # # ###@########???????????????? | | ?# """ # ### / #???????????????? | | ?# """?# s p ! #???????????????? | | ?# """?##### p% *= #???????????????? | | ?# ?????# *% ! ! #???????????????? | | ??###?????# [ #???????????????? | | ??????????# """"T"""" #???????????????? | | ??????????### """"""""""" #???????????????? | | ????????????### ############???????????????? | | ??????????????#########??????????????????????????? | | ?????????????????????????????????????????????????? | | ?????????????????????????????????????????????????? | | ?????????????????????????????????????????????????? | | ?????????????????????????????????????????????????? | | ?????????????????????????????????????????????????? | | ?????????????????????????????????????????????????? | | ?????????????????????????????????????????????????? | | ?????????????????????????????????????????????????? | | ?????????????????????????????????????????????????? | | ?????????????????????????????????????????????????? | | ?????????????????????????????????????????????????? | | ?????????????????????????????????????????????????? | | ?????????????????????????????????????????????????? | | ?????????????????????????????????????????????????? | | ?????????????????????????????????????????????????? | +----------------------------------------------------+ Best States ------------- Heat Dissipation 62 Energy Generation 27 Energy Capacity 265 Matter Stores 300 Matter Capacity 300 Sight Range 22 Terrain Scan Density 10 Armor Coverage 300 Utility Shielding 66 Phase Shifting 5 Evasion (%) 64 Targeting Accuracy 6 Melee Accuracy 10 Recoil Reduction 2 Offensive Hacking 10 Item Schematics ----------------- Hacking Suite | -8/Materials | Hacked Robot Schematics ------------------ None Fabricated ------------ Nothing Repaired ---------- Imp. Light Armor Plating | 14% | -5/Factory Studied --------- Aluminum Leg | -9/Materials | Hacked Katana | -8/Materials | Hacked Cesium-ion Thruster | -8/Materials | Hacked Alien Tech Used ----------------- None Achievements -------------- Batter Up It Was An Accident, I Swear Challenges ------------ None Game ------ Seed SpacefoldHeavyImmobilizer Manual? 0 Play Time 01:05:53 Cumulative 39.4 hours Start 2026.07.18 @ 11:39:16 End 2026.07.18 @ 13:17:41 Sessions 3 Manual Loads 0 Difficulty Rogue Special Mode None Game No. 57 Rogue 57 Adventurer 0 Explorer 0 Win Type - Total 1 Types 1/0/0/0/0/0/0/0/0/0 Lore% 30 Gallery% 32 Achievement% 24 Wizard Run 0 Options --------- Layout 1 ASCII 0 Keyboard 0 Movement Mouse Keybinds 0 Fullscreen 1 Font 20/SmallcapsGlow Map View 50x35 Zoom Use 0% Tactical HUD 1 Map Filters NONE Filters NONE Steam 1 RUN: b0e169e8-6c87-458b-a78f-ae4c0b3a8f84